bitfinex-derivatives/quotes_BTCF0:USTF0_20250810
["timestamp","ask_amount","ask_price","bid_price","bid_amount"]
[1754801860471,0.2807482,118530.0,118520.0,1.1136378]
[1754801860774,0.30288089,118530.0,118520.0,1.1136378]
[1754801861471,0.30288089,118530.0,118520.0,1.4523293]
[1754801861873,0.30288089,118530.0,118520.0,1.1136378]
[1754801862068,0.30288089,118530.0,118520.0,1.34651177]
[1754801862372,0.2530682,118530.0,118520.0,1.34651177]
[1754801862674,0.2530682,118530.0,118520.0,1.00782027]
[1754801862865,0.2750471,118530.0,118520.0,1.00782027]
[1754801863065,0.2530682,118530.0,118520.0,1.34651177]
[1754801865769,0.0843525,118530.0,118520.0,1.4523293]
[1754801867576,0.6141457,118540.0,118530.0,0.2063524]
[1754801867764,0.63565585,118540.0,118530.0,0.5450439]
[1754801867963,0.63565585,118540.0,118530.0,0.2063524]
[1754801868168,0.6138457,118540.0,118530.0,0.5450439]
[1754801868364,0.63512542,118540.0,118530.0,0.5450439]
[1754801868772,0.66280542,118540.0,118530.0,0.5450439]
[1754801869271,0.6415257,118540.0,118530.0,0.5450439]
[1754801869477,0.66275031,118540.0,118530.0,0.5450439]
[1754801869977,0.66375031,118540.0,118530.0,0.5450439]
[1754801870178,0.66475031,118540.0,118530.0,0.5450439]
[1754801871379,0.30395031,118540.0,118530.0,0.5450439]
[1754801873680,0.27627031,118540.0,118530.0,0.5450439]
[1754801874184,0.30395031,118540.0,118530.0,0.5450439]
[1754801874873,0.2827257,118540.0,118530.0,0.5450439]
[1754801875883,0.2827257,118540.0,118530.0,0.2063524]
[1754801876086,0.2827257,118540.0,118530.0,0.5450439]
[1754801876986,0.1706952,118540.0,118530.0,0.5450439]
[1754801877386,0.1706952,118540.0,118530.0,0.65086143]
[1754801877686,0.002,118540.0,118530.0,0.65086143]
[1754801877885,0.0863452,118540.0,118530.0,1.01166143]
[1754801878085,0.002,118540.0,118530.0,1.01166143]
[1754801882991,0.022,118540.0,118530.0,1.01166143]
[1754801884392,0.022,118540.0,118530.0,0.67296993]
[1754801884592,0.022,118540.0,118530.0,1.01166143]
[1754801889300,0.1063452,118540.0,118530.0,1.28066143]
[1754801892802,0.8551567,118540.0,118530.0,0.34227]
[1754801893104,0.8551567,118540.0,118530.0,1.10527]
[1754801893404,0.8551567,118540.0,118530.0,1.1896223]
[1754801893708,0.5164652,118540.0,118530.0,1.2364223]
[1754801894004,0.8551567,118540.0,118530.0,1.2364223]
[1754801895207,0.8551567,118540.0,118530.0,0.9899523]
[1754801895801,0.0843523,118530.0,118520.0,1e-07]
[1754801896000,0.98524904,118530.0,118520.0,1e-07]
[1754801896205,1.15399304,118530.0,118520.0,1e-07]
[1754801896508,1.15399304,118530.0,118520.0,0.02411]
[1754801896698,0.1001765,118510.0,118500.0,0.13926]
[1754801896900,0.823278,118510.0,118500.0,0.13926]
[1754801897102,0.823278,118510.0,118500.0,0.9277]
[1754801898709,0.823278,118510.0,118500.0,0.95181]
[1754801899310,0.824278,118510.0,118500.0,0.95781]
[1754801899508,0.4855865,118510.0,118500.0,1.03368938]
[1754801899705,0.4855865,118510.0,118500.0,0.35951412]
[1754801899905,0.4855865,118510.0,118500.0,0.69820562]
[1754801900112,0.4855865,118510.0,118500.0,1.48604562]
[1754801900303,0.4855865,118510.0,118500.0,1.14735412]
[1754801900912,0.0853665,118510.0,118500.0,1.48609273]
[1754801901808,0.0853665,118510.0,118500.0,1.5619459]
[1754801903110,0.001,118510.0,118500.0,1.48609273]
[1754801903512,0.001,118510.0,118500.0,1.84689273]
[1754801903709,0.001,118510.0,118500.0,1.95266315]
[1754801903914,0.2532923,118520.0,118510.0,0.2028365]
[1754801904212,0.2689023,118520.0,118510.0,0.541528]
[1754801904714,0.2689023,118520.0,118510.0,0.61736026]
[1754801905115,0.1845372,118520.0,118510.0,0.61836026]
[1754801905311,0.001,118520.0,118510.0,0.7142565]
[1754801905717,0.001,118520.0,118510.0,0.87445459]
[1754801906413,0.001,118520.0,118510.0,0.98027212]
[1754801906605,0.0853594,118520.0,118510.0,0.98027212]
[1754801907013,0.0853594,118520.0,118510.0,0.90444053]
[1754801907324,0.001,118520.0,118510.0,0.90444053]
[1754801907817,0.0853594,118520.0,118510.0,0.90444053]
[1754801910011,0.0853594,118520.0,118510.0,1.17344053]
[1754801912623,0.0853594,118520.0,118510.0,1.53424053]
[1754801912925,0.0853594,118520.0,118510.0,1.17344053]
[1754801913924,0.0853594,118520.0,118510.0,1.24927212]
[1754801916924,0.001,118520.0,118510.0,1.61007212]
[1754801918424,0.10327782,118530.0,118520.0,0.2036894]
[1754801918628,0.10297782,118530.0,118520.0,1.3266609]
[1754801919225,0.10297782,118530.0,118520.0,1.6874609]
[1754801919427,0.10297782,118530.0,118520.0,1.75718274]
[1754801919728,0.10297782,118530.0,118520.0,1.83301433]
[1754801920631,0.01862552,118530.0,118520.0,1.83301433]
[1754801920828,0.01862552,118530.0,118520.0,1.93883186]
[1754801921031,0.01862552,118530.0,118520.0,2.27752336]
[1754801921832,0.01862552,118530.0,118520.0,2.54652336]
[1754801922032,0.01862552,118530.0,118520.0,2.44070583]
[1754801922937,0.01862552,118530.0,118520.0,2.44073176]
[1754801923437,0.10297782,118530.0,118520.0,2.44073176]
[1754801923735,0.10297782,118530.0,118520.0,2.10204026]
[1754801924532,0.01862552,118530.0,118520.0,2.10204026]
[1754801924941,0.10297772,118530.0,118520.0,2.44073176]
[1754801925832,0.01862552,118530.0,118520.0,2.44073176]
[1754801927235,0.0103,118540.0,118530.0,0.08725]
[1754801927437,0.0943452,118540.0,118530.0,1.1721738]
[1754801928731,0.0943452,118540.0,118530.0,1.1731738]
[1754801929234,0.011,118540.0,118530.0,1.1731738]
[1754801929739,0.0953452,118540.0,118530.0,1.1731738]
[1754801934240,0.0953452,118540.0,118530.0,1.24903132]
[1754801934827,0.0953452,118540.0,118530.0,1.1731738]
[1754801937438,0.0953452,118540.0,118530.0,0.8123738]
[1754801937641,0.0953452,118540.0,118530.0,1.1731738]
[1754801938042,0.0953452,118540.0,118530.0,0.8123738]
[1754801939142,0.0953452,118540.0,118530.0,1.1731738]
[1754801940148,0.0953452,118540.0,118530.0,1.24903132]
[1754801940845,0.011,118540.0,118530.0,1.24903132]
[1754801941153,0.011,118540.0,118530.0,1.35484885]
[1754801941345,0.2533251,118550.0,118530.0,1.53697105]
[1754801941346,0.1689835,118550.0,118530.0,1.53697105]
[1754801941645,0.1687835,118550.0,118540.0,1.6842867]
[1754801941844,0.0843384,118550.0,118540.0,1.6842867]
[1754801942045,0.54145759,118560.0,118550.0,0.09691]
[1754801942352,0.27165776,118560.0,118550.0,0.5423595]
[1754801943239,0.27465776,118560.0,118550.0,0.5423595]
[1754801944852,0.27465776,118560.0,118550.0,0.55067535]
[1754801945451,0.27265776,118560.0,118550.0,0.55067535]
[1754801947354,0.29228776,118560.0,118550.0,0.55067535]
[1754801952153,0.18832116,118560.0,118550.0,0.65649288]
[1754801952864,0.20795116,118560.0,118550.0,0.65649288]
[1754801953067,0.18832116,118560.0,118550.0,1.01729288]
[1754801953367,0.01964896,118560.0,118550.0,1.01729288]
[1754801954473,0.01964896,118560.0,118550.0,0.67860138]
[1754801954657,0.001,118560.0,118550.0,1.01729288]
[1754801955459,0.1689519,118570.0,118560.0,0.2040209]
[1754801955663,0.1686519,118570.0,118560.0,1.6844324]
[1754801957859,0.1686519,118570.0,118560.0,1.6864324]
[1754801959773,0.6983863,118580.0,118560.0,1.9394206]
[1754801959975,0.7344163,118580.0,118570.0,0.5427053]
[1754801960175,0.7343163,118580.0,118570.0,0.5427053]
[1754801960871,1.03439256,118580.0,118570.0,1.23846006]
[1754801961078,1.03539256,118580.0,118570.0,1.23846006]
[1754801962870,0.7817863,118580.0,118570.0,0.9848538]
[1754801963584,0.7817863,118580.0,118570.0,1.32306469]
[1754801964978,0.7817863,118580.0,118570.0,0.9848538]
[1754801968085,0.7582363,118580.0,118570.0,1.32306469]
[1754801975087,0.7582363,118580.0,118570.0,0.9848538]
[1754801975286,0.7582363,118580.0,118570.0,1.32306469]
[1754801975787,0.7810363,118580.0,118570.0,1.32306469]
[1754801976687,0.7582363,118580.0,118570.0,1.32306469]
[1754801981590,0.7810363,118580.0,118570.0,1.32306469]
[1754801984697,1.03467351,118580.0,118570.0,1.23849101]
[1754801985801,1.03467351,118580.0,118570.0,0.9848538]
[1754801985993,1.03467351,118580.0,118570.0,1.23849101]
[1754801995904,1.01187351,118580.0,118570.0,1.23849101]
[1754801997403,1.03467351,118580.0,118570.0,1.23849101]
[1754801998608,1.01187351,118580.0,118570.0,1.23849101]
[1754801998900,1.01187351,118580.0,118570.0,0.1172738]
[1754801999105,1.28831072,118580.0,118570.0,0.9859638]
[1754801999404,1.03467351,118580.0,118570.0,1.23960101]
[1754802000407,1.03467351,118580.0,118570.0,0.2059238]
[1754802000611,1.28831072,118580.0,118570.0,1.23956101]
[1754802000908,1.03467351,118580.0,118570.0,1.23956101]
[1754802001111,0.1640349,118570.0,118560.0,0.07595752]
[1754802001408,0.1640421,118560.0,118550.0,1.02371672]
[1754802001609,0.4609821,118560.0,118550.0,1.28564565]
[1754802001799,0.0843321,118560.0,118550.0,1.82224997]
[1754802001993,0.3376192,118570.0,118560.0,0.1720021]
[1754802002308,0.3376192,118570.0,118560.0,0.71393652]
[1754802002309,0.3373192,118570.0,118560.0,0.71393652]
[1754802003004,0.3373192,118570.0,118560.0,0.28258367]
[1754802003308,0.3373192,118570.0,118560.0,0.78985809]
[1754802003810,0.168656,118570.0,118560.0,0.81975405]
[1754802004295,0.168656,118570.0,118560.0,0.82175405]
[1754802004706,0.168656,118570.0,118560.0,0.65265338]
[1754802004902,0.6336938,118580.0,118570.0,0.123195]
[1754802005100,0.6333938,118580.0,118570.0,1.32474875]
[1754802005306,0.2529638,118580.0,118570.0,1.43056628]
[1754802005604,0.7346124,118590.0,118580.0,0.2056479]
[1754802005808,0.7346124,118590.0,118580.0,0.54382165]
[1754802005809,0.7343124,118590.0,118580.0,0.54382165]
[1754802006305,0.7572624,118590.0,118580.0,0.54382165]
[1754802006910,0.7592624,118590.0,118580.0,0.54382165]
[1754802007303,0.6749453,118590.0,118580.0,0.64963918]
[1754802007510,0.4471103,118590.0,118580.0,0.64963918]
[1754802007903,0.4667403,118590.0,118580.0,0.64963918]
[1754802008102,0.4833603,118590.0,118580.0,0.64963918]
[1754802008504,0.1225603,118590.0,118580.0,0.64963918]
[1754802009009,0.1205603,118590.0,118580.0,0.64963918]
[1754802010502,0.1205603,118590.0,118580.0,0.91863918]
[1754802010702,0.1215603,118590.0,118580.0,0.91863918]
[1754802011405,0.1215603,118590.0,118580.0,0.98718339]
[1754802012814,0.4823603,118590.0,118580.0,0.98718339]
[1754802013716,0.5053103,118590.0,118580.0,0.98718339]
[1754802013917,0.4627303,118590.0,118580.0,0.98718339]
[1754802014617,0.4823603,118590.0,118580.0,0.98718339]
[1754802016017,0.5053103,118590.0,118580.0,0.98718339]
[1754802016513,0.86758405,118590.0,118580.0,0.4746471]
[1754802016811,0.86758405,118590.0,118580.0,1.2044571]
[1754802017314,0.86758405,118590.0,118580.0,1.2541671]
[1754802017615,0.86758405,118590.0,118580.0,1.07144]
[1754802018115,0.86758405,118590.0,118580.0,1.12115]
[1754802018612,0.86758405,118590.0,118580.0,1.2054671]
[1754802020015,0.5294103,118590.0,118580.0,1.2054671]
[1754802022516,0.5294103,118590.0,118580.0,0.9851671]
[1754802026520,0.4461103,118590.0,118580.0,1.50507995]
[1754802026714,0.0853103,118590.0,118580.0,1.50507995]
[1754802028821,0.0853103,118590.0,118580.0,1.42915838]
[1754802029224,0.1049403,118590.0,118580.0,1.42915838]
[1754802031323,0.0853103,118590.0,118580.0,1.42915838]
[1754802031725,0.4657403,118590.0,118580.0,1.42879838]
[1754802031921,0.4823603,118590.0,118580.0,1.42879838]
[1754802035131,0.4823603,118590.0,118580.0,1.09062463]
[1754802035429,0.4823603,118590.0,118580.0,1.42879838]
[1754802035732,0.5040803,118590.0,118580.0,1.42879838]
[1754802036232,0.5277703,118590.0,118580.0,1.42879838]
[1754802037129,0.5040803,118590.0,118580.0,1.42879838]
[1754802038131,0.5040803,118590.0,118580.0,1.50471995]
[1754802038633,0.5040803,118590.0,118580.0,1.1665462]
[1754802038833,0.5040803,118590.0,118580.0,1.50471995]
[1754802040235,0.4627303,118590.0,118580.0,0.72555995]
[1754802040437,0.4627303,118590.0,118580.0,1.50443995]
[1754802040837,0.4627303,118590.0,118580.0,1.1662662]
[1754802041036,0.4627303,118590.0,118580.0,1.50443995]
[1754802041632,0.4461103,118590.0,118580.0,1.50443995]
[1754802041936,0.4461103,118590.0,118580.0,1.39862242]
[1754802043640,0.4657403,118590.0,118580.0,1.39862242]
[1754802044541,0.4657403,118590.0,118580.0,1.06044867]
[1754802044743,0.4657403,118590.0,118580.0,1.39862242]
[1754802045830,0.4657403,118590.0,118580.0,1.32270085]
[1754802046241,0.4461103,118590.0,118580.0,1.32270085]
[1754802047741,0.4461103,118590.0,118580.0,0.9845271]
[1754802047944,0.4461103,118590.0,118580.0,1.32270085]
[1754802048443,0.4657403,118590.0,118580.0,1.32270085]
[1754802049446,0.4461103,118590.0,118580.0,1.32270085]
[1754802049640,0.84116405,118590.0,118580.0,0.07162]
[1754802049948,0.86485405,118590.0,118580.0,0.89855]
[1754802052049,0.86485405,118590.0,118580.0,0.982867]
[1754802054760,0.86485405,118590.0,118580.0,0.89855]
[1754802055055,0.86485405,118590.0,118580.0,0.982867]
[1754802056061,0.84116405,118590.0,118580.0,0.982867]
[1754802056649,0.86485405,118590.0,118580.0,0.982867]
[1754802056952,0.5029903,118590.0,118580.0,0.982867]
[1754802057653,0.5029903,118590.0,118580.0,1.05878857]
[1754802060157,0.5029903,118590.0,118580.0,0.982867]
[1754802061656,0.5266803,118590.0,118580.0,0.982867]
[1754802062057,0.86485405,118590.0,118580.0,0.982867]
[1754802064862,0.86485405,118590.0,118580.0,0.89855]
[1754802067254,0.86526405,118590.0,118580.0,0.80295]
[1754802067554,0.86526405,118590.0,118580.0,0.89634]
[1754802069059,0.87526405,118590.0,118580.0,0.89634]
[1754802070356,0.5370903,118590.0,118580.0,0.89634]
[1754802070557,0.87526405,118590.0,118580.0,0.07181]
[1754802070759,0.1659027,118580.0,118570.0,0.0001]
[1754802070964,0.1659098,118570.0,118560.0,0.97172157]
[1754802071261,0.88362063,118570.0,118560.0,0.8957]
[1754802072264,0.54544688,118570.0,118560.0,0.8987]
[1754802072462,0.88362063,118570.0,118560.0,0.8987]
[1754802073162,0.88362063,118570.0,118560.0,0.97462157]
[1754802073765,0.88362063,118570.0,118560.0,0.97562157]
[1754802081764,0.89194884,118570.0,118560.0,0.97562157]
[1754802082169,0.88362063,118570.0,118560.0,0.97562157]
[1754802082869,0.88362063,118570.0,118560.0,0.8997]
[1754802083068,0.88362063,118570.0,118560.0,0.97562157]
[1754802084764,0.80203063,118570.0,118560.0,0.97562157]
[1754802084965,0.49991688,118570.0,118560.0,0.97562157]
[1754802085269,0.46385688,118570.0,118560.0,1.50393995]
[1754802085474,0.10305688,118570.0,118560.0,1.42801838]
[1754802085667,0.10305688,118570.0,118560.0,1.5337888]
[1754802088269,0.10305688,118570.0,118560.0,1.19561505]
[1754802088471,0.10305688,118570.0,118560.0,1.5337888]
[1754802090274,0.10305688,118570.0,118560.0,1.19561505]
[1754802090459,0.10305688,118570.0,118560.0,1.50386339]
[1754802091969,0.10305688,118570.0,118560.0,1.41953629]
[1754802092171,0.10305688,118570.0,118560.0,1.08136254]
[1754802092372,0.47729063,118570.0,118560.0,1.08136254]
[1754802092976,0.13911688,118570.0,118560.0,1.00551753]
[1754802093365,0.13911688,118570.0,118560.0,1.11128795]
[1754802093772,0.16054688,118570.0,118560.0,1.00547042]
[1754802094274,0.52134688,118570.0,118560.0,1.00547042]
[1754802096366,0.52134688,118570.0,118560.0,1.08133615]
[1754802096567,0.52134688,118570.0,118560.0,0.8997]
[1754802097269,0.52134688,118570.0,118560.0,0.97556895]
[1754802099273,0.52134688,118570.0,118560.0,1.05989485]
[1754802099784,0.52134688,118570.0,118560.0,0.97556895]
[1754802100882,0.52134688,118570.0,118560.0,0.8997]
[1754802103382,0.54509688,118570.0,118560.0,0.8997]
[1754802104682,0.52134688,118570.0,118560.0,1.00551753]
[1754802105184,0.54509688,118570.0,118560.0,1.00551753]
[1754802105378,0.54509688,118570.0,118560.0,1.08138648]
[1754802105980,0.52134688,118570.0,118560.0,1.08138648]
[1754802108685,0.52134688,118570.0,118560.0,1.00551753]
[1754802112089,0.52134688,118570.0,118560.0,1.08138648]
[1754802115887,0.46385608,118570.0,118560.0,1.42801738]
[1754802116191,0.10305608,118570.0,118560.0,1.50388633]
[1754802116381,0.01873708,118570.0,118560.0,1.86468633]
[1754802116581,0.01873708,118570.0,118560.0,1.78881738]
[1754802116784,0.01873708,118570.0,118560.0,2.03368806]
[1754802117088,0.01873708,118570.0,118560.0,1.95781911]
[1754802117386,0.10305628,118570.0,118560.0,1.95781911]
[1754802117591,0.10305628,118570.0,118560.0,2.06358953]
[1754802118690,0.10305628,118570.0,118560.0,1.89457412]
[1754802120994,0.10305628,118570.0,118560.0,1.53377412]
[1754802121894,0.10305628,118570.0,118560.0,1.19561405]
[1754802122284,0.10305628,118570.0,118560.0,1.53377412]
[1754802123995,0.10305628,118570.0,118560.0,1.19561405]
[1754802124197,0.10305628,118570.0,118560.0,1.53377412]
[1754802125198,0.10305628,118570.0,118560.0,1.19561405]
[1754802125594,0.10305628,118570.0,118560.0,1.4280037]
[1754802126297,0.10305628,118570.0,118560.0,1.53377412]
[1754802127198,0.10305628,118570.0,118560.0,1.19561405]
[1754802127398,0.10305628,118570.0,118560.0,1.53377412]
[1754802128291,0.10305628,118570.0,118560.0,1.19561405]
[1754802128493,0.10305628,118570.0,118560.0,1.53377412]
[1754802129507,0.10305628,118570.0,118560.0,1.19561405]
[1754802129899,0.10305628,118570.0,118560.0,1.53377412]
[1754802130804,0.0843192,118570.0,118560.0,1.53377412]
[1754802137601,0.0843192,118570.0,118560.0,1.89457412]
[1754802137800,0.1689299,118580.0,118570.0,0.2003394]
[1754802138101,0.0843127,118580.0,118570.0,0.55577044]
[1754802138307,0.3475385,118590.0,118580.0,0.2003323]
[1754802138606,0.3472385,118590.0,118580.0,1.39142547]
[1754802139707,0.3482385,118590.0,118580.0,1.39142547]
[1754802140809,0.3482385,118590.0,118580.0,1.39442547]
[1754802141309,0.3472385,118590.0,118580.0,1.39542547]
[1754802143008,0.3472385,118590.0,118580.0,1.40370963]
[1754802145412,0.3472385,118590.0,118580.0,1.50952716]
[1754802146507,0.3472385,118590.0,118580.0,1.43363406]
[1754802151316,0.3472385,118590.0,118580.0,1.09547399]
[1754802151616,0.3472385,118590.0,118580.0,1.43363406]
[1754802152615,0.60080214,118590.0,118580.0,1.60260127]
[1754802153614,0.3472385,118590.0,118580.0,1.60260127]
[1754802155424,0.3472385,118590.0,118580.0,1.64750127]
[1754802155622,0.0943056,118590.0,118580.0,2.00830127]
[1754802155817,0.0943056,118590.0,118580.0,1.21626709]
[1754802156123,0.0943056,118590.0,118580.0,2.08419437]
[1754802158423,0.0943056,118590.0,118580.0,2.15094437]
[1754802161123,0.0943056,118590.0,118580.0,1.64381709]
[1754802161321,0.0943056,118590.0,118580.0,2.41994437]
[1754802161523,0.0943056,118590.0,118580.0,2.05914437]
[1754802161922,0.0943056,118590.0,118580.0,1.95332684]
[1754802162228,0.34786924,118590.0,118580.0,1.44619956]
[1754802162526,0.36749924,118590.0,118580.0,1.6997632]
[1754802163024,0.36749924,118590.0,118580.0,1.95332684]
[1754802163621,1.03936398,118590.0,118580.0,1.2868531]
[1754802163925,1.06300398,118590.0,118580.0,0.0489]
[1754802164130,1.23165998,118590.0,118580.0,0.1095699]
[1754802164620,1.06300398,118590.0,118580.0,0.0489]
[1754802165331,1.06300398,118590.0,118580.0,0.0479]
[1754802165623,1.06300398,118590.0,118570.0,0.1009631]
[1754802165624,0.1230429,118580.0,118570.0,0.0759931]
[1754802165927,0.12305,118570.0,118560.0,0.8527931]
[1754802166129,0.99097728,118570.0,118560.0,0.8526931]
[1754802166323,0.99097728,118570.0,118560.0,0.8776631]
[1754802166524,0.99097728,118570.0,118560.0,0.9113331]
[1754802166723,0.82217181,118570.0,118560.0,0.9113331]
[1754802167131,0.82217181,118570.0,118560.0,0.9357431]
[1754802167435,0.82217181,118570.0,118560.0,0.9574831]
[1754802167831,0.82217181,118570.0,118560.0,0.88159]
[1754802168032,0.82217181,118570.0,118560.0,0.89724]
[1754802168335,0.82217181,118570.0,118560.0,0.97307684]
[1754802168530,0.82217181,118570.0,118560.0,0.97407684]
[1754802169238,0.82217181,118570.0,118560.0,0.89824]
[1754802169437,0.82217181,118570.0,118560.0,0.97406803]
[1754802169639,0.82217181,118570.0,118560.0,0.97706803]
[1754802170136,0.82217181,118570.0,118560.0,0.90124]
[1754802170332,0.4615,118570.0,118560.0,1.0613949]
[1754802170551,0.4615,118570.0,118560.0,1.50553424]
[1754802171047,0.4615,118570.0,118560.0,1.16721243]
[1754802171237,0.08432,118570.0,118560.0,1.50553424]
[1754802171546,0.08432,118570.0,118560.0,1.42970644]
[1754802172648,0.08432,118570.0,118560.0,1.50551988]
[1754802173152,0.08432,118570.0,118560.0,1.42970644]
[1754802173749,0.08432,118570.0,118560.0,1.5055186]
[1754802174251,0.08432,118570.0,118560.0,1.42970644]
[1754802174437,0.08432,118570.0,118560.0,1.42119]
[1754802174643,0.46137181,118570.0,118560.0,0.97705066]
[1754802175344,0.82217181,118570.0,118560.0,0.11455066]
[1754802175648,0.82217181,118570.0,118560.0,0.81658]
[1754802175849,0.82217181,118570.0,118560.0,0.90228]
[1754802176048,0.82217181,118570.0,118560.0,0.97809248]
[1754802178552,0.82217181,118570.0,118560.0,0.90228]
[1754802181254,0.79982181,118570.0,118560.0,0.90228]
[1754802183857,0.82217181,118570.0,118560.0,0.90228]
[1754802184151,0.48385,118570.0,118560.0,0.90228]
[1754802184352,0.82217181,118570.0,118560.0,0.90228]
[1754802184755,0.82217181,118570.0,118560.0,0.88764]
[1754802185058,0.82217181,118570.0,118560.0,0.004]
[1754802185059,1.6193809,118570.0,118560.0,0.004]
[1754802185759,0.0843275,118560.0,118550.0,0.85158]
[1754802185955,0.82144931,118560.0,118550.0,0.07328]
[1754802186465,1.15977112,118560.0,118550.0,0.02497]
[1754802187162,1.15977112,118560.0,118550.0,0.02597]
[1754802187563,0.82144931,118560.0,118550.0,0.02597]
[1754802188065,0.82144931,118560.0,118550.0,0.02797]
[1754802190462,1.15977112,118560.0,118550.0,0.003]
[1754802190662,0.0999846,118550.0,118540.0,0.09858248]
[1754802190963,0.84033234,118550.0,118540.0,0.02267]
[1754802191563,1.61941234,118550.0,118540.0,0.02267]
[1754802191952,0.1223417,118540.0,118530.0,0.97162248]
[1754802192260,0.82146351,118540.0,118530.0,0.97152248]
[1754802192863,0.82146351,118540.0,118530.0,0.95713248]
[1754802193065,0.82146351,118540.0,118530.0,0.10216]
[1754802193265,0.82146351,118540.0,118530.0,0.17790089]
[1754802193462,0.82146351,118540.0,118530.0,0.19229089]
[1754802193662,0.88955854,118540.0,118530.0,0.19229089]
[1754802194257,0.88955854,118540.0,118530.0,0.14599089]
[1754802194464,0.89055854,118540.0,118530.0,0.14899089]
[1754802194866,0.89055854,118540.0,118530.0,0.15099089]
[1754802195365,0.89912677,118540.0,118530.0,0.10341089]
[1754802198866,0.89912677,118540.0,118530.0,0.13532089]
[1754802199065,0.89912677,118540.0,118530.0,0.15903089]
[1754802199262,0.89912677,118540.0,118530.0,0.18167089]
[1754802199466,0.89912677,118540.0,118530.0,0.19729089]
[1754802206570,0.89912677,118540.0,118530.0,0.10716]
[1754802207075,0.89912677,118540.0,118530.0,0.005]
[1754802208372,0.89912677,118540.0,118530.0,0.02767]
[1754802208570,0.89912677,118540.0,118530.0,0.08222]
[1754802208775,0.89912677,118540.0,118530.0,0.19729089]
[1754802210777,0.89912677,118540.0,118530.0,0.12155]
[1754802211073,0.89912677,118540.0,118530.0,0.19729089]
[1754802212775,0.90912677,118540.0,118530.0,0.19729089]
[1754802213377,0.90912677,118540.0,118530.0,0.12155]
[1754802213581,1.66381677,118540.0,118530.0,0.12155]
[1754802213874,1.68616677,118540.0,118530.0,0.1974423]
[1754802215279,1.68616677,118540.0,118530.0,0.12155]
[1754802216877,1.68616677,118540.0,118530.0,0.22732042]
[1754802219678,1.68616677,118540.0,118530.0,0.11077042]
[1754802220080,1.68616677,118540.0,118530.0,0.13525042]
[1754802220683,1.68616677,118540.0,118530.0,0.005]
[1754802221485,1.68616677,118540.0,118530.0,0.02948]
[1754802222481,1.68616677,118540.0,118530.0,0.005]
[1754802228591,1.68616677,118540.0,118530.0,0.02948]
[1754802228789,1.68616677,118540.0,118530.0,0.03853]
[1754802229091,1.34784496,118540.0,118530.0,0.12392]
[1754802229281,1.68616677,118540.0,118530.0,0.12392]
[1754802229791,0.90912677,118540.0,118530.0,0.12392]
[1754802232392,1.31688673,118540.0,118530.0,0.22973753]
[1754802232590,0.53988673,118540.0,118530.0,0.31408683]
[1754802232793,0.53988673,118540.0,118530.0,0.22973753]
[1754802233188,0.87820854,118540.0,118530.0,0.31408683]
[1754802234601,0.90055854,118540.0,118530.0,0.31408683]
[1754802234793,0.53975854,118540.0,118530.0,0.31408683]
[1754802234988,0.51740854,118540.0,118530.0,0.31408683]
[1754802235302,0.90055854,118540.0,118530.0,0.22973753]
[1754802235597,0.90055854,118540.0,118530.0,0.005]
[1754802235795,0.90055854,118540.0,118530.0,0.12392]
[1754802236799,0.90055854,118540.0,118530.0,0.005]
[1754802237302,0.90901513,118540.0,118530.0,0.02948]
[1754802238399,0.90901513,118540.0,118530.0,0.0625]
[1754802241107,0.90901513,118540.0,118530.0,0.005]
[1754802242403,0.90901513,118540.0,118530.0,1e-07]
[1754802242597,0.1005897,118530.0,118520.0,0.0001]
[1754802242804,0.1229468,118520.0,118510.0,0.14712809]
[1754802243006,0.82206861,118520.0,118510.0,0.07107]
[1754802243202,0.82206861,118520.0,118510.0,0.08012]
[1754802243912,0.1006039,118510.0,118500.0,0.96182889]
[1754802244114,0.4799835,118510.0,118500.0,1.05616889]
[1754802244712,0.4614039,118510.0,118500.0,1.05616889]
[1754802245007,0.4614039,118510.0,118500.0,0.97179809]
[1754802245214,0.82507571,118510.0,118500.0,1.09861562]
[1754802245410,0.82507571,118510.0,118500.0,0.21587809]
[1754802245606,0.4867539,118510.0,118500.0,0.21587809]
[1754802245802,0.84371109,118510.0,118500.0,0.21587809]
[1754802247611,0.84371109,118510.0,118500.0,0.32169562]
[1754802247811,0.50538928,118510.0,118500.0,0.32169562]
[1754802248012,0.84371109,118510.0,118500.0,0.32169562]
[1754802248711,0.85234364,118510.0,118500.0,0.32169562]
[1754802248902,0.85234364,118510.0,118500.0,0.23630562]
[1754802249104,0.85234364,118510.0,118500.0,0.29243562]
[1754802249309,0.85234364,118510.0,118500.0,0.32138562]
[1754802249609,0.85234364,118510.0,118500.0,0.24542753]
[1754802249810,0.85234364,118510.0,118500.0,0.32132524]
[1754802250407,0.85234364,118510.0,118500.0,0.24542753]
[1754802252210,0.85234364,118510.0,118500.0,0.32136666]
[1754802253914,0.51402183,118510.0,118500.0,0.24542753]
[1754802254109,0.85234364,118510.0,118500.0,0.24542753]
[1754802255615,0.85234364,118510.0,118500.0,0.19865753]
[1754802256113,0.85234364,118510.0,118500.0,0.23191753]
[1754802257115,0.85234364,118510.0,118500.0,0.12681753]
[1754802257608,1.62930364,118510.0,118500.0,0.021]
[1754802257813,1.62930364,118510.0,118500.0,0.09693913]
[1754802258012,1.62930364,118510.0,118500.0,0.021]
[1754802259012,1.28998183,118510.0,118500.0,0.013]
[1754802259214,1.62830364,118510.0,118500.0,0.013]
[1754802260713,1.62730364,118510.0,118500.0,0.003]
[1754802260911,1.28898183,118510.0,118500.0,0.003]
[1754802261216,1.62730364,118510.0,118500.0,0.02776]
[1754802261409,1.62730364,118510.0,118500.0,0.06102]
[1754802262912,1.62730364,118510.0,118500.0,0.02776]
[1754802266228,1.62730364,118510.0,118500.0,0.07064]
[1754802266405,1.62730364,118510.0,118500.0,0.10702]
[1754802266607,0.84171109,118510.0,118500.0,0.13357753]
[1754802266811,0.84171109,118510.0,118500.0,0.22827753]
[1754802267013,0.50338928,118510.0,118500.0,0.31264833]
[1754802267218,0.48103928,118510.0,118500.0,0.31264833]
[1754802269121,0.50338928,118510.0,118500.0,0.31264833]
[1754802269421,0.48103928,118510.0,118500.0,0.31264833]
[1754802270223,0.48103928,118510.0,118500.0,1.08960833]
[1754802270424,0.12023928,118510.0,118500.0,1.08960833]
[1754802272725,0.10399928,118510.0,118500.0,1.59669814]
[1754802273224,0.10399908,118510.0,118500.0,1.59669814]
[1754802273414,0.10399908,118510.0,118500.0,2.0181362]
[1754802273917,0.10399908,118510.0,118500.0,1.95749814]
[1754802274418,0.01963538,118510.0,118500.0,1.9748394]
[1754802274625,0.253281,118520.0,118510.0,0.2038237]
[1754802274819,0.253081,118520.0,118510.0,0.90294551]
[1754802275123,0.310251,118520.0,118510.0,0.5646237]
[1754802276118,0.64857281,118520.0,118510.0,0.5646237]
[1754802276323,0.64857281,118520.0,118510.0,0.2038237]
[1754802276928,0.64957281,118520.0,118510.0,0.2048237]
[1754802277126,0.1697181,118520.0,118510.0,0.70962421]